[Event "Titled Tuesday Blitz March 14 Late 2023"]
[White "Clawitter, Craig"]
[Black "lisjakzlatko1"]
[WhiteFideId "2023105"]
[WhiteElo "2233"]
[BlackElo "2147"]
[Result "1-0"]
[Round "07"]
[TimeControl "180+2"]
[Date "2023.03.14"]
[WhiteClock "0:00:07"]
[BlackClock "0:00:02"]

1. e4 {[%clk 0:02:57]}  d6 {[%clk 0:02:59]} 2. d4 {[%clk 0:02:57]}  Nf6 {[%clk 0:02:59]} 3. Nc3 {[%clk 0:02:58]}  c6 {[%clk 0:02:58]} 4. f4 {[%clk 0:02:57]}  Qa5 {[%clk 0:02:55]} 5. e5 {[%clk 0:02:57]}  Ne4 {[%clk 0:02:50]} 6. Qf3 {[%clk 0:02:57]}  d5 {[%clk 0:02:46]} 7. Bd3 {[%clk 0:02:56]}  Na6 {[%clk 0:02:44]} 8. Ne2 {[%clk 0:02:51]}  Nb4 {[%clk 0:02:37]} 9. O-O {[%clk 0:02:50]}  Nxd3 {[%clk 0:02:13]} 10. cxd3 {[%clk 0:02:49]}  Nxc3 {[%clk 0:02:13]} 11. bxc3 {[%clk 0:02:50]}  e6 {[%clk 0:02:05]} 12. Bd2 {[%clk 0:02:11]}  Qa6 {[%clk 0:02:00]} 13. Ng3 {[%clk 0:01:59]}  g6 {[%clk 0:01:57]} 14. h4 {[%clk 0:01:59]}  h5 {[%clk 0:01:53]} 15. Rfc1 {[%clk 0:01:54]}  Be7 {[%clk 0:01:52]} 16. f5 {[%clk 0:01:31]}  Bxh4 {[%clk 0:01:38]} 17. fxg6 {[%clk 0:01:27]}  fxg6 {[%clk 0:01:37]} 18. Rf1 {[%clk 0:01:24]}  Bd7 {[%clk 0:01:20]} 19. Qf7+ {[%clk 0:01:12]}  Kd8 {[%clk 0:01:20]} 20. Qxg6 {[%clk 0:01:00]}  Kc7 {[%clk 0:01:19]} 21. Nxh5 {[%clk 0:00:47]}  Rag8 {[%clk 0:01:16]} 22. Ng7 {[%clk 0:00:47]}  b6 {[%clk 0:01:07]} 23. Rf7 {[%clk 0:00:45]}  Qc8 {[%clk 0:00:56]} 24. Qxe6 {[%clk 0:00:34]}  Rh7 {[%clk 0:00:48]} 25. Qd6+ {[%clk 0:00:17]}  Kb7 {[%clk 0:00:38]} 26. Rxd7+ {[%clk 0:00:16]}  Ka8 {[%clk 0:00:38]} 27. Bh6 {[%clk 0:00:13]}  Rxh6 {[%clk 0:00:36]} 28. Qxh6 {[%clk 0:00:13]}  Qxd7 {[%clk 0:00:37]} 29. Qxh4 {[%clk 0:00:12]}  Qxg7 {[%clk 0:00:36]} 30. Qf2 {[%clk 0:00:10]}  Qg6 {[%clk 0:00:35]} 31. Rd1 {[%clk 0:00:08]}  Qg4 {[%clk 0:00:34]} 32. Rd2 {[%clk 0:00:09]}  Rh8 {[%clk 0:00:32]} 33. Qe3 {[%clk 0:00:08]}  Qh4 {[%clk 0:00:32]} 34. Kf1 {[%clk 0:00:07]}  Qh1+ {[%clk 0:00:27]} 35. Qg1 {[%clk 0:00:07]}  Qh6 {[%clk 0:00:20]} 36. Rf2 {[%clk 0:00:06]}  Qc1+ {[%clk 0:00:18]} 37. Ke2 {[%clk 0:00:07]}  Qxc3 {[%clk 0:00:18]} 38. Qf1 {[%clk 0:00:06]}  Qxd4 {[%clk 0:00:15]} 39. Rf8+ {[%clk 0:00:05]}  Rxf8 {[%clk 0:00:12]} 40. Qxf8+ {[%clk 0:00:06]}  Kb7 {[%clk 0:00:12]} 41. Qe7+ {[%clk 0:00:06]}  Ka6 {[%clk 0:00:12]} 42. Qa3+ {[%clk 0:00:06]}  Kb7 {[%clk 0:00:11]} 43. Qe7+ {[%clk 0:00:06]}  Ka6 {[%clk 0:00:11]} 44. e6 {[%clk 0:00:06]}  Qe5+ {[%clk 0:00:10]} 45. Kf2 {[%clk 0:00:06]}  Qf4+ {[%clk 0:00:09]} 46. Kg1 {[%clk 0:00:07]}  Qe3+ {[%clk 0:00:08]} 47. Kh1 {[%clk 0:00:06]}  Qe1+ {[%clk 0:00:06]} 48. Kh2 {[%clk 0:00:07]}  Qh4+ {[%clk 0:00:06]} 49. Qxh4 {[%clk 0:00:06]}  c5 {[%clk 0:00:03]} 50. e7 {[%clk 0:00:06]}  Ka5 {[%clk 0:00:02]} 51. e8=Q {[%clk 0:00:07]} 1-0


[Site "https://www.chess.com"]

[Event "Titled Tuesday Blitz March 14 Late 2023"]
[White "Simonovic, Miroslav"]
[Black "Souza, Gustavo Horokoski De"]
[WhiteFideId "919152"]
[BlackFideId "2146584"]
[WhiteElo "2042"]
[BlackElo "1859"]
[Result "1-0"]
[Round "07"]
[TimeControl "180+2"]
[Date "2023.03.14"]
[WhiteClock "0:01:17"]
[BlackClock "0:00:10"]

1. d4 {[%clk 0:03:00]}  Nf6 {[%clk 0:02:56]} 2. Bg5 {[%clk 0:03:01]}  g6 {[%clk 0:02:55]} 3. Bxf6 {[%clk 0:03:01]}  exf6 {[%clk 0:02:56]} 4. c4 {[%clk 0:03:02]}  Bg7 {[%clk 0:02:56]} 5. Nc3 {[%clk 0:03:02]}  O-O {[%clk 0:02:56]} 6. g3 {[%clk 0:03:03]}  f5 {[%clk 0:02:43]} 7. e3 {[%clk 0:03:03]}  Nc6 {[%clk 0:02:29]} 8. Bg2 {[%clk 0:03:01]}  Ne7 {[%clk 0:02:28]} 9. Nge2 {[%clk 0:03:01]}  c6 {[%clk 0:02:28]} 10. O-O {[%clk 0:03:01]}  d5 {[%clk 0:02:29]} 11. cxd5 {[%clk 0:03:02]}  Nxd5 {[%clk 0:02:28]} 12. Nxd5 {[%clk 0:03:02]}  cxd5 {[%clk 0:02:28]} 13. Nc3 {[%clk 0:03:02]}  Be6 {[%clk 0:02:28]} 14. Qb3 {[%clk 0:03:01]}  b6 {[%clk 0:02:27]} 15. Bxd5 {[%clk 0:03:00]}  Bxd5 {[%clk 0:02:23]} 16. Qxd5 {[%clk 0:03:01]}  Qe7 {[%clk 0:02:19]} 17. a3 {[%clk 0:02:59]}  Rfd8 {[%clk 0:02:18]} 18. Qf3 {[%clk 0:02:54]}  Rac8 {[%clk 0:02:12]} 19. Rfc1 {[%clk 0:02:53]}  Rd7 {[%clk 0:01:47]} 20. Nd5 {[%clk 0:02:47]}  Rxc1+ {[%clk 0:01:45]} 21. Rxc1 {[%clk 0:02:48]}  Qd8 {[%clk 0:01:46]} 22. Nf4 {[%clk 0:02:37]}  Rc7 {[%clk 0:01:42]} 23. Qd1 {[%clk 0:02:29]}  Rxc1 {[%clk 0:01:30]} 24. Qxc1 {[%clk 0:02:30]}  g5 {[%clk 0:01:30]} 25. Nh5 {[%clk 0:02:27]}  Bf8 {[%clk 0:01:30]} 26. Qc6 {[%clk 0:02:24]}  Be7 {[%clk 0:01:19]} 27. Kg2 {[%clk 0:02:14]}  f6 {[%clk 0:01:11]} 28. h3 {[%clk 0:02:09]}  Kf7 {[%clk 0:01:09]} 29. Qc4+ {[%clk 0:02:06]}  Kg6 {[%clk 0:01:04]} 30. g4 {[%clk 0:02:06]}  Qa8+ {[%clk 0:00:59]} 31. d5 {[%clk 0:02:03]}  Qd8 {[%clk 0:00:52]} 32. Qd3 {[%clk 0:02:01]}  Qd7 {[%clk 0:00:50]} 33. Ng3 {[%clk 0:02:01]}  a5 {[%clk 0:00:40]} 34. Qxf5+ {[%clk 0:01:59]}  Qxf5 {[%clk 0:00:39]} 35. Nxf5 {[%clk 0:02:00]}  Bc5 {[%clk 0:00:39]} 36. a4 {[%clk 0:01:57]}  Kf7 {[%clk 0:00:37]} 37. Kf3 {[%clk 0:01:55]}  Ke8 {[%clk 0:00:30]} 38. Ke4 {[%clk 0:01:55]}  Kd7 {[%clk 0:00:31]} 39. f4 {[%clk 0:01:52]}  b5 {[%clk 0:00:28]} 40. axb5 {[%clk 0:01:51]}  a4 {[%clk 0:00:27]} 41. Nd4 {[%clk 0:01:51]}  Bb4 {[%clk 0:00:26]} 42. fxg5 {[%clk 0:01:40]}  fxg5 {[%clk 0:00:26]} 43. Nc2 {[%clk 0:01:25]}  Bc5 {[%clk 0:00:21]} 44. Na3 {[%clk 0:01:20]}  Bb6 {[%clk 0:00:15]} 45. Nc4 {[%clk 0:01:20]}  Bc5 {[%clk 0:00:15]} 46. Kf5 {[%clk 0:01:19]}  Bb4 {[%clk 0:00:15]} 47. Kxg5 {[%clk 0:01:19]}  Kc7 {[%clk 0:00:11]} 48. Kh6 {[%clk 0:01:17]}  Kb7 {[%clk 0:00:10]} 49. Kxh7 {[%clk 0:01:17]} 1-0


[Site "https://www.chess.com"]

[Event "Titled Tuesday Blitz March 14 Late 2023"]
[White "Nakamura, Hikaru"]
[Black "Khismatullin, Denis"]
[WhiteFideId "2016192"]
[BlackFideId "4142578"]
[WhiteElo "2879"]
[BlackElo "2531"]
[Result "1-0"]
[Round "08"]
[TimeControl "180+2"]
[Date "2023.03.14"]
[WhiteClock "0:00:04"]
[BlackClock "0:00:10"]

1. Nf3 {[%clk 0:03:00]}  Nf6 {[%clk 0:02:57]} 2. b3 {[%clk 0:03:00]}  d5 {[%clk 0:02:54]} 3. Bb2 {[%clk 0:03:00]}  Bg4 {[%clk 0:02:54]} 4. g3 {[%clk 0:02:58]}  Bxf3 {[%clk 0:02:54]} 5. exf3 {[%clk 0:02:59]}  e6 {[%clk 0:02:53]} 6. Bg2 {[%clk 0:02:59]}  g6 {[%clk 0:02:52]} 7. O-O {[%clk 0:02:58]}  Bg7 {[%clk 0:02:52]} 8. c4 {[%clk 0:02:55]}  O-O {[%clk 0:02:51]} 9. f4 {[%clk 0:02:54]}  Nc6 {[%clk 0:02:50]} 10. Nc3 {[%clk 0:02:50]}  dxc4 {[%clk 0:02:44]} 11. bxc4 {[%clk 0:02:48]}  Qd3 {[%clk 0:02:33]} 12. Re1 {[%clk 0:02:28]}  Rfd8 {[%clk 0:02:29]} 13. Nb5 {[%clk 0:02:11]}  Qxc4 {[%clk 0:02:09]} 14. a4 {[%clk 0:02:07]}  a6 {[%clk 0:01:57]} 15. Rc1 {[%clk 0:01:58]}  Qb4 {[%clk 0:01:50]} 16. Bc3 {[%clk 0:01:48]}  Qe7 {[%clk 0:01:47]} 17. Bxc6 {[%clk 0:01:47]}  axb5 {[%clk 0:01:34]} 18. Bxb5 {[%clk 0:01:47]}  c6 {[%clk 0:01:32]} 19. Bc4 {[%clk 0:01:47]}  Nd5 {[%clk 0:01:31]} 20. Bxg7 {[%clk 0:01:47]}  Kxg7 {[%clk 0:01:31]} 21. Qb3 {[%clk 0:01:48]}  Rd7 {[%clk 0:01:30]} 22. Rb1 {[%clk 0:01:43]}  Nf6 {[%clk 0:01:26]} 23. d3 {[%clk 0:01:42]}  Qd6 {[%clk 0:01:25]} 24. Qc2 {[%clk 0:01:41]}  Ra5 {[%clk 0:01:24]} 25. Rb2 {[%clk 0:01:37]}  Rc5 {[%clk 0:01:20]} 26. Qb1 {[%clk 0:01:36]}  Qc7 {[%clk 0:01:15]} 27. Qa1 {[%clk 0:01:37]}  Ra5 {[%clk 0:01:14]} 28. Ra2 {[%clk 0:01:33]}  h5 {[%clk 0:01:03]} 29. h4 {[%clk 0:01:20]}  Qd8 {[%clk 0:00:56]} 30. Rb1 {[%clk 0:01:12]}  Kh7 {[%clk 0:00:56]} 31. Qc3 {[%clk 0:01:08]}  Ng4 {[%clk 0:00:55]} 32. Bb3 {[%clk 0:01:02]}  Qb6 {[%clk 0:00:51]} 33. Rab2 {[%clk 0:00:54]}  Qa7 {[%clk 0:00:46]} 34. Bd1 {[%clk 0:00:52]}  Nh6 {[%clk 0:00:45]} 35. Rxb7 {[%clk 0:00:42]}  Rxb7 {[%clk 0:00:41]} 36. Rxb7 {[%clk 0:00:43]}  Qxb7 {[%clk 0:00:41]} 37. Qxa5 {[%clk 0:00:43]}  Qb1 {[%clk 0:00:41]} 38. Qd2 {[%clk 0:00:44]}  Nf5 {[%clk 0:00:37]} 39. Kg2 {[%clk 0:00:38]}  Qa1 {[%clk 0:00:31]} 40. a5 {[%clk 0:00:34]}  Nd4 {[%clk 0:00:31]} 41. Bf3 {[%clk 0:00:32]}  Kg7 {[%clk 0:00:19]} 42. Be4 {[%clk 0:00:23]}  Kh7 {[%clk 0:00:17]} 43. Bf3 {[%clk 0:00:23]}  Kg7 {[%clk 0:00:16]} 44. Bd1 {[%clk 0:00:16]}  Kh7 {[%clk 0:00:16]} 45. Qb4 {[%clk 0:00:14]}  Kg7 {[%clk 0:00:14]} 46. Qa4 {[%clk 0:00:13]}  Qc3 {[%clk 0:00:08]} 47. a6 {[%clk 0:00:13]}  Qxd3 {[%clk 0:00:08]} 48. a7 {[%clk 0:00:10]}  Qe4+ {[%clk 0:00:09]} 49. f3 {[%clk 0:00:06]}  Qe3 {[%clk 0:00:09]} 50. a8=Q {[%clk 0:00:05]}  Qd2+ {[%clk 0:00:09]} 51. Kh3 {[%clk 0:00:05]}  Qe1 {[%clk 0:00:10]} 52. Qxd4+ {[%clk 0:00:04]} 1-0


[Site "https://www.chess.com"]

[Event "Titled Tuesday Blitz March 14 Late 2023"]
[White "Svane, Rasmus"]
[Black "Naroditsky, Daniel"]
[WhiteFideId "4657101"]
[BlackFideId "2026961"]
[WhiteElo "2597"]
[BlackElo "2633"]
[Result "1/2-1/2"]
[Round "08"]
[TimeControl "180+2"]
[Date "2023.03.14"]
[WhiteClock "0:01:56"]
[BlackClock "0:01:55"]

1. Nf3 {[%clk 0:03:00]}  Nf6 {[%clk 0:03:00]} 2. d4 {[%clk 0:03:00]}  g6 {[%clk 0:02:58]} 3. Nbd2 {[%clk 0:03:00]}  d5 {[%clk 0:02:56]} 4. b3 {[%clk 0:02:59]}  Bg7 {[%clk 0:02:56]} 5. Bb2 {[%clk 0:02:58]}  O-O {[%clk 0:02:56]} 6. e3 {[%clk 0:02:58]}  b6 {[%clk 0:02:54]} 7. Be2 {[%clk 0:02:58]}  Bb7 {[%clk 0:02:54]} 8. O-O {[%clk 0:02:58]}  c5 {[%clk 0:02:55]} 9. c4 {[%clk 0:02:46]}  cxd4 {[%clk 0:02:52]} 10. Nxd4 {[%clk 0:02:41]}  Nc6 {[%clk 0:02:52]} 11. Rc1 {[%clk 0:02:34]}  Rc8 {[%clk 0:02:33]} 12. h3 {[%clk 0:02:31]}  Nxd4 {[%clk 0:02:17]} 13. Bxd4 {[%clk 0:02:32]}  dxc4 {[%clk 0:02:17]} 14. Rxc4 {[%clk 0:02:20]}  Qd7 {[%clk 0:02:12]} 15. Bf3 {[%clk 0:02:13]}  Ba6 {[%clk 0:01:57]} 16. Rxc8 {[%clk 0:02:10]}  Rxc8 {[%clk 0:01:58]} 17. Re1 {[%clk 0:02:05]}  Bb7 {[%clk 0:01:54]} 18. Bxb7 {[%clk 0:02:02]}  Qxb7 {[%clk 0:01:55]} 19. Qb1 {[%clk 0:01:56]} 1/2-1/2


[Site "https://www.chess.com"]

[Event "Titled Tuesday Blitz March 14 Late 2023"]
[White "Deac, Bogdan-Daniel"]
[Black "Erigaisi Arjun"]
[WhiteFideId "1226380"]
[BlackFideId "35009192"]
[WhiteElo "2649"]
[BlackElo "2737"]
[Result "0-1"]
[Round "08"]
[TimeControl "180+2"]
[Date "2023.03.14"]
[WhiteClock "0:00:02"]
[BlackClock "0:00:09"]

1. d4 {[%clk 0:03:00]}  d6 {[%clk 0:02:59]} 2. e4 {[%clk 0:03:00]}  g6 {[%clk 0:02:59]} 3. c4 {[%clk 0:03:00]}  Bg7 {[%clk 0:02:59]} 4. Nc3 {[%clk 0:03:00]}  Nf6 {[%clk 0:02:58]} 5. Be2 {[%clk 0:03:00]}  O-O {[%clk 0:02:58]} 6. Be3 {[%clk 0:03:01]}  Nc6 {[%clk 0:02:56]} 7. d5 {[%clk 0:03:01]}  Ne5 {[%clk 0:02:56]} 8. f4 {[%clk 0:03:02]}  Neg4 {[%clk 0:02:55]} 9. Bd2 {[%clk 0:03:02]}  Nh6 {[%clk 0:02:53]} 10. Nf3 {[%clk 0:03:02]}  c6 {[%clk 0:02:52]} 11. a4 {[%clk 0:03:02]}  e6 {[%clk 0:02:52]} 12. dxe6 {[%clk 0:03:01]}  Bxe6 {[%clk 0:02:51]} 13. O-O {[%clk 0:03:00]}  Re8 {[%clk 0:02:38]} 14. Bd3 {[%clk 0:03:00]}  Bg4 {[%clk 0:02:29]} 15. a5 {[%clk 0:02:37]}  Nd7 {[%clk 0:02:27]} 16. h3 {[%clk 0:02:32]}  Nc5 {[%clk 0:02:15]} 17. Bc2 {[%clk 0:02:28]}  Be6 {[%clk 0:02:00]} 18. f5 {[%clk 0:01:08]}  Bxc4 {[%clk 0:01:55]} 19. Qc1 {[%clk 0:00:57]}  Bxf1 {[%clk 0:01:28]} 20. Kxf1 {[%clk 0:00:58]}  Nxe4 {[%clk 0:01:24]} 21. Bxe4 {[%clk 0:00:53]}  d5 {[%clk 0:01:12]} 22. Bd3 {[%clk 0:00:38]}  Nxf5 {[%clk 0:01:12]} 23. Bxf5 {[%clk 0:00:38]}  gxf5 {[%clk 0:01:13]} 24. Ne2 {[%clk 0:00:38]}  Qd6 {[%clk 0:01:06]} 25. Bc3 {[%clk 0:00:32]}  Re4 {[%clk 0:00:56]} 26. Bxg7 {[%clk 0:00:26]}  Kxg7 {[%clk 0:00:57]} 27. Qc3+ {[%clk 0:00:27]}  Kg8 {[%clk 0:00:46]} 28. Qd2 {[%clk 0:00:13]}  Rae8 {[%clk 0:00:42]} 29. Nc3 {[%clk 0:00:13]}  Re3 {[%clk 0:00:40]} 30. a6 {[%clk 0:00:06]}  b5 {[%clk 0:00:38]} 31. Re1 {[%clk 0:00:04]}  Qf4 {[%clk 0:00:30]} 32. Rxe3 {[%clk 0:00:04]}  Rxe3 {[%clk 0:00:31]} 33. Qd1 {[%clk 0:00:04]}  Qc4+ {[%clk 0:00:25]} 34. Kf2 {[%clk 0:00:04]}  f4 {[%clk 0:00:25]} 35. Ne2 {[%clk 0:00:03]}  Rd3 {[%clk 0:00:23]} 36. Qe1 {[%clk 0:00:02]}  Qe4 {[%clk 0:00:21]} 37. Qc1 {[%clk 0:00:01]}  Qe3+ {[%clk 0:00:19]} 38. Ke1 {[%clk 0:00:02]}  c5 {[%clk 0:00:14]} 39. Qc2 {[%clk 0:00:02]}  c4 {[%clk 0:00:12]} 40. Nd2 {[%clk 0:00:02]}  b4 {[%clk 0:00:09]} 41. Nf3 {[%clk 0:00:02]}  b3 {[%clk 0:00:09]} 42. Qc1 {[%clk 0:00:02]}  Qxc1+ {[%clk 0:00:07]} 43. Nxc1 {[%clk 0:00:02]}  Re3+ {[%clk 0:00:08]} 44. Kd2 {[%clk 0:00:02]}  c3+ {[%clk 0:00:08]} 45. bxc3 {[%clk 0:00:02]}  b2 {[%clk 0:00:09]} 0-1


[Site "https://www.chess.com"]

[Event "Titled Tuesday Blitz March 14 Late 2023"]
[White "Vachier-Lagrave, Maxime"]
[Black "Ibarra Jerez, Jose Carlos"]
[WhiteFideId "623539"]
[BlackFideId "2226332"]
[WhiteElo "2740"]
[BlackElo "2638"]
[Result "0-1"]
[Round "08"]
[TimeControl "180+2"]
[Date "2023.03.14"]
[WhiteClock "0:01:28"]
[BlackClock "0:00:53"]

1. d4 {[%clk 0:03:00]}  Nf6 {[%clk 0:02:59]} 2. Bf4 {[%clk 0:02:58]}  d5 {[%clk 0:02:55]} 3. e3 {[%clk 0:02:57]}  c5 {[%clk 0:02:56]} 4. c3 {[%clk 0:02:58]}  Nc6 {[%clk 0:02:56]} 5. Nd2 {[%clk 0:02:57]}  e6 {[%clk 0:02:43]} 6. Bd3 {[%clk 0:02:56]}  Bd6 {[%clk 0:02:41]} 7. Bg3 {[%clk 0:02:56]}  e5 {[%clk 0:02:38]} 8. Ne2 {[%clk 0:02:49]}  O-O {[%clk 0:02:34]} 9. O-O {[%clk 0:02:44]}  Re8 {[%clk 0:02:34]} 10. dxc5 {[%clk 0:02:42]}  Bxc5 {[%clk 0:02:34]} 11. e4 {[%clk 0:02:41]}  Bg4 {[%clk 0:02:22]} 12. h3 {[%clk 0:02:36]}  dxe4 {[%clk 0:02:14]} 13. Nxe4 {[%clk 0:02:37]}  Nxe4 {[%clk 0:02:05]} 14. hxg4 {[%clk 0:02:37]}  Ng5 {[%clk 0:01:38]} 15. Qc2 {[%clk 0:02:28]}  e4 {[%clk 0:01:35]} 16. Bb5 {[%clk 0:02:25]}  Qb6 {[%clk 0:01:28]} 17. a4 {[%clk 0:02:23]}  a6 {[%clk 0:01:21]} 18. Bc4 {[%clk 0:02:23]}  Ne5 {[%clk 0:01:21]} 19. Bxe5 {[%clk 0:02:10]}  Rxe5 {[%clk 0:01:22]} 20. b4 {[%clk 0:02:10]}  Bd6 {[%clk 0:01:16]} 21. Rad1 {[%clk 0:02:08]}  Qc7 {[%clk 0:01:07]} 22. Rd4 {[%clk 0:01:54]}  Re7 {[%clk 0:01:01]} 23. Qb3 {[%clk 0:01:43]}  Bh2+ {[%clk 0:01:01]} 24. Kh1 {[%clk 0:01:43]}  Be5 {[%clk 0:01:01]} 25. Rdd1 {[%clk 0:01:32]}  Qc6 {[%clk 0:01:01]} 26. g3 {[%clk 0:01:27]}  Qh6+ {[%clk 0:00:58]} 27. Kg2 {[%clk 0:01:27]}  Qh3+ {[%clk 0:00:52]} 28. Kg1 {[%clk 0:01:28]}  Nf3# {[%clk 0:00:53]} 0-1


[Site "https://www.chess.com"]

[Event "Titled Tuesday Blitz March 14 Late 2023"]
[White "Makhnev, Denis"]
[Black "Ruiz Castillo, Joshua Daniel"]
[WhiteFideId "13707647"]
[BlackFideId "4400704"]
[WhiteElo "2525"]
[BlackElo "2491"]
[Result "0-1"]
[Round "08"]
[TimeControl "180+2"]
[Date "2023.03.14"]
[WhiteClock "0:00:01"]
[BlackClock "0:00:06"]

1. d4 {[%clk 0:03:00]}  d5 {[%clk 0:02:57]} 2. c4 {[%clk 0:03:01]}  e6 {[%clk 0:02:57]} 3. Nf3 {[%clk 0:03:02]}  a6 {[%clk 0:02:58]} 4. Nbd2 {[%clk 0:02:57]}  Nf6 {[%clk 0:02:57]} 5. Qc2 {[%clk 0:02:54]}  Nbd7 {[%clk 0:02:43]} 6. g3 {[%clk 0:02:48]}  b6 {[%clk 0:02:41]} 7. Bg2 {[%clk 0:02:47]}  Bb7 {[%clk 0:02:42]} 8. cxd5 {[%clk 0:02:47]}  exd5 {[%clk 0:02:42]} 9. O-O {[%clk 0:02:43]}  Bd6 {[%clk 0:02:42]} 10. Nh4 {[%clk 0:02:40]}  O-O {[%clk 0:02:07]} 11. Nf5 {[%clk 0:02:39]}  Re8 {[%clk 0:02:02]} 12. Nxd6 {[%clk 0:02:16]}  cxd6 {[%clk 0:02:03]} 13. e3 {[%clk 0:02:17]}  Ne4 {[%clk 0:02:00]} 14. Nxe4 {[%clk 0:02:12]}  dxe4 {[%clk 0:02:00]} 15. Bd2 {[%clk 0:02:13]}  Rc8 {[%clk 0:01:53]} 16. Qb3 {[%clk 0:02:12]}  Nf6 {[%clk 0:01:52]} 17. Rfc1 {[%clk 0:02:12]}  Re7 {[%clk 0:01:36]} 18. Bh3 {[%clk 0:01:21]}  Rxc1+ {[%clk 0:01:35]} 19. Rxc1 {[%clk 0:01:22]}  Rc7 {[%clk 0:01:34]} 20. Rc3 {[%clk 0:01:23]}  Rxc3 {[%clk 0:01:32]} 21. bxc3 {[%clk 0:01:18]}  d5 {[%clk 0:01:21]} 22. c4 {[%clk 0:01:17]}  dxc4 {[%clk 0:01:19]} 23. Qxc4 {[%clk 0:01:18]}  Nd5 {[%clk 0:01:16]} 24. Qc2 {[%clk 0:00:49]}  Nf6 {[%clk 0:00:52]} 25. Bb4 {[%clk 0:00:44]}  h5 {[%clk 0:00:49]} 26. Bf1 {[%clk 0:00:41]}  Qc8 {[%clk 0:00:41]} 27. Qb1 {[%clk 0:00:31]}  h4 {[%clk 0:00:35]} 28. Be7 {[%clk 0:00:29]}  hxg3 {[%clk 0:00:35]} 29. hxg3 {[%clk 0:00:29]}  Ng4 {[%clk 0:00:20]} 30. Be2 {[%clk 0:00:20]}  b5 {[%clk 0:00:18]} 31. Qd1 {[%clk 0:00:13]}  Nh6 {[%clk 0:00:18]} 32. d5 {[%clk 0:00:12]}  Qd7 {[%clk 0:00:17]} 33. d6 {[%clk 0:00:10]}  Nf5 {[%clk 0:00:11]} 34. Bg4 {[%clk 0:00:10]}  Bc8 {[%clk 0:00:12]} 35. Qc2 {[%clk 0:00:06]}  Qe6 {[%clk 0:00:10]} 36. Qc7 {[%clk 0:00:06]}  Bd7 {[%clk 0:00:10]} 37. Qb7 {[%clk 0:00:04]}  Kh7 {[%clk 0:00:09]} 38. Qxa6 {[%clk 0:00:04]}  Qc4 {[%clk 0:00:07]} 39. Qa3 {[%clk 0:00:01]}  Qd5 {[%clk 0:00:06]} 0-1


[Site "https://www.chess.com"]

[Event "Titled Tuesday Blitz March 14 Late 2023"]
[White "Kramnik, Vladimir"]
[Black "Pham, Khoi"]
[WhiteFideId "4101588"]
[BlackFideId "1054988"]
[WhiteElo "2712"]
[BlackElo "2585"]
[Result "1-0"]
[Round "08"]
[TimeControl "180+2"]
[Date "2023.03.14"]
[WhiteClock "0:01:21"]
[BlackClock "0:00:47"]

1. d4 {[%clk 0:03:00]}  Nf6 {[%clk 0:02:58]} 2. Nf3 {[%clk 0:03:00]}  d5 {[%clk 0:02:57]} 3. e3 {[%clk 0:02:59]}  c6 {[%clk 0:02:53]} 4. Bd3 {[%clk 0:02:57]}  Bg4 {[%clk 0:02:53]} 5. Nbd2 {[%clk 0:02:57]}  e6 {[%clk 0:02:52]} 6. b3 {[%clk 0:02:52]}  Nbd7 {[%clk 0:02:51]} 7. Bb2 {[%clk 0:02:52]}  Be7 {[%clk 0:02:51]} 8. c4 {[%clk 0:02:50]}  O-O {[%clk 0:02:50]} 9. Qc2 {[%clk 0:02:50]}  Rc8 {[%clk 0:02:41]} 10. c5 {[%clk 0:02:47]}  Re8 {[%clk 0:02:38]} 11. b4 {[%clk 0:02:43]}  Bf8 {[%clk 0:02:35]} 12. Ne5 {[%clk 0:02:39]}  Bh5 {[%clk 0:02:28]} 13. f4 {[%clk 0:02:38]}  Bg6 {[%clk 0:02:19]} 14. Nxg6 {[%clk 0:02:32]}  hxg6 {[%clk 0:02:20]} 15. O-O {[%clk 0:02:31]}  b6 {[%clk 0:02:17]} 16. Nf3 {[%clk 0:02:18]}  Be7 {[%clk 0:02:01]} 17. a3 {[%clk 0:02:02]}  Nh7 {[%clk 0:01:53]} 18. g4 {[%clk 0:01:53]}  Nhf8 {[%clk 0:01:35]} 19. g5 {[%clk 0:01:48]}  f5 {[%clk 0:01:19]} 20. gxf6 {[%clk 0:01:46]}  Nxf6 {[%clk 0:01:18]} 21. Ne5 {[%clk 0:01:44]}  Ne4 {[%clk 0:01:01]} 22. Bxe4 {[%clk 0:01:43]}  dxe4 {[%clk 0:01:02]} 23. Qxe4 {[%clk 0:01:43]}  Qd5 {[%clk 0:01:02]} 24. Qg2 {[%clk 0:01:42]}  Bf6 {[%clk 0:00:58]} 25. e4 {[%clk 0:01:39]}  Qd8 {[%clk 0:00:51]} 26. Rad1 {[%clk 0:01:35]}  g5 {[%clk 0:00:49]} 27. fxg5 {[%clk 0:01:26]}  Bxg5 {[%clk 0:00:49]} 28. Nf7 {[%clk 0:01:24]}  Be3+ {[%clk 0:00:48]} 29. Kh1 {[%clk 0:01:24]}  Qh4 {[%clk 0:00:47]} 30. d5 {[%clk 0:01:21]} 1-0


[Site "https://www.chess.com"]